bitfinex-derivatives/quotes_ETHF0:USTF0_20240818
["timestamp","ask_amount","ask_price","bid_price","bid_amount"]
[1723954642949,0.967,2606.3,2606.2,3.29219697]
[1723954643146,0.967,2606.3,2606.2,7.12899697]
[1723954643344,0.96990344,2606.3,2606.2,6.52321239]
[1723954643542,0.96990344,2606.3,2606.2,4.56]
[1723954643946,0.96990344,2606.3,2606.2,5.51912]
[1723954645252,0.96990344,2606.3,2606.2,14.63349607]
[1723954645755,0.00290344,2606.3,2606.2,14.63349607]
[1723954647655,0.00290344,2606.3,2606.2,13.67437607]
[1723954648746,0.00290344,2606.3,2606.2,8.67437607]
[1723954648939,0.00290344,2606.3,2606.2,13.67437607]
[1723954649339,0.00290344,2606.3,2606.2,8.67437607]
[1723954649742,0.00290344,2606.3,2606.2,13.67437607]
[1723954653452,0.00290344,2606.3,2606.2,14.63349607]
[1723954653652,0.00575827,2606.5,2606.4,0.95904]
[1723954653854,0.00575827,2606.5,2606.4,13.00364]
[1723954654159,0.00575827,2606.5,2606.4,17.33815433]
[1723954654857,0.00915466,2606.5,2606.4,17.33815433]
[1723954658163,0.00915466,2606.5,2606.4,12.33815433]
[1723954658357,0.00915466,2606.5,2606.4,17.33815433]
[1723954658559,0.00915466,2606.5,2606.4,17.70805433]
[1723954659959,0.3684,2607.0,2606.8,0.95889]
[1723954660259,0.3684,2607.0,2606.9,0.3774]
[1723954660863,0.3729686,2607.0,2606.9,0.38147959]
[1723954661263,0.0045686,2607.0,2606.9,4.21747959]
[1723954662205,0.00575827,2607.2,2607.1,0.95878]
[1723954662356,0.00575827,2607.2,2607.1,5.13358]
[1723954662668,3.2078,2608.0,2607.1,17.07005973]
[1723954662865,0.967,2607.9,2607.5,4.1748]
[1723954663073,0.967,2607.9,2607.6,1.69079]
[1723954663375,0.967,2607.7,2607.6,4.72695189]
[1723954663764,0.967,2607.7,2607.6,8.56215189]
[1723954670572,0.3523,2607.8,2607.6,9.52075189]
[1723954670763,0.3523,2607.8,2607.6,5.68555189]
[1723954671068,0.00955729,2607.9,2607.8,0.95853]
[1723954671569,0.00955729,2607.9,2607.8,8.88371751]
[1723954672473,0.00955729,2607.9,2607.8,12.09151751]
[1723954673364,2.77799126,2608.5,2608.0,0.95844]
[1723954673563,0.967,2608.2,2608.0,0.95844]
[1723954674064,0.967,2608.2,2608.1,0.3675]
[1723954674462,0.97153561,2608.2,2608.1,0.3675]
[1723954678967,0.97153561,2608.2,2607.8,3.2078]
[1723954679166,0.967,2608.0,2607.8,3.2078]
[1723954679465,0.3539,2607.9,2607.8,3.2078]
[1723954679875,0.3539,2607.9,2607.8,7.33284026]
[1723954680072,0.3539,2607.9,2607.8,11.16724026]
[1723954681479,0.97153561,2608.2,2607.8,13.09277026]
[1723954681770,0.00453561,2608.2,2607.9,0.967]
[1723954683173,0.00453561,2608.2,2608.0,0.3597]
[1723954683670,0.00453561,2608.2,2608.0,4.54632031]
[1723954684474,0.34783561,2608.2,2608.0,4.54632031]
[1723954685378,0.34783561,2608.2,2608.1,0.3496]
[1723954688674,0.00453561,2608.2,2608.1,0.3496]
[1723954691572,0.00453561,2608.2,2608.1,1.30802]
[1723954692675,0.00453561,2608.2,2608.1,0.3496]
[1723954697071,0.00453561,2608.2,2608.1,6.10942]
[1723954697272,0.00453561,2608.2,2608.1,13.60058491]
[1723954697478,0.00453561,2608.2,2608.1,18.60058491]
[1723954698288,0.00453561,2608.2,2608.1,17.63358491]
[1723954698488,0.00453561,2608.2,2608.1,7.84076491]
[1723954698788,0.00453561,2608.2,2608.1,3.5574]
[1723954699586,0.00453561,2608.2,2608.1,0.3496]
[1723954699587,0.97153561,2608.2,2608.1,0.3496]
[1723954700483,0.00453561,2608.2,2608.1,0.3496]
[1723954703389,0.00453561,2608.2,2608.1,1.3166]
[1723954704793,0.00453561,2608.2,2608.1,6.10942]
[1723954704987,0.00022782,2608.2,2608.1,13.98703327]
[1723954705186,0.00022782,2608.2,2608.1,14.48972844]
[1723954706094,0.00022782,2608.2,2608.1,13.02729103]
[1723954706398,0.00022782,2608.2,2608.1,13.531303]
[1723954706614,0.00022782,2608.2,2608.1,12.92596711]
[1723954706813,0.00022782,2608.2,2608.1,13.53144384]
[1723954706997,0.00022782,2608.2,2608.1,13.53142938]
[1723954707595,0.00022782,2608.2,2608.1,4.37894661]
[1723954708095,0.00022782,2608.2,2608.1,5.38285301]
[1723954708284,0.00022782,2608.2,2608.1,1.95896867]
[1723954708593,0.96722782,2608.2,2608.1,3.52654769]
[1723954708793,5.76000782,2608.2,2607.8,1.3594064]
[1723954708992,0.967,2608.1,2607.8,1.3594064]
[1723954709386,0.967,2608.1,2607.9,0.3755]
[1723954710192,0.00022782,2608.2,2607.9,0.3755]
[1723954710397,0.00022782,2608.2,2608.0,0.60550765]
[1723954710691,0.00022782,2608.2,2607.9,2.3464064]
[1723954711296,0.00022782,2608.2,2608.1,0.967]
[1723954711484,0.00022782,2608.2,2608.1,2.57642108]
[1723954711687,0.00022782,2608.2,2608.1,0.967]
[1723954711897,0.00022782,2608.2,2608.0,1.3593064]
[1723954714223,0.00022782,2608.2,2608.1,1.0039064]
[1723954714398,0.00022782,2608.2,2608.1,1.60941457]
[1723954715299,0.00022782,2608.2,2608.1,1.0039064]
[1723954715499,0.00022782,2608.2,2608.1,1.60942017]
[1723954715804,0.00022782,2608.2,2608.1,0.60551377]
[1723954716093,0.00022782,2608.2,2608.0,1.3593064]
[1723954716794,0.00022782,2608.2,2608.1,1.60941454]
[1723954717192,0.00022782,2608.2,2608.1,6.40223454]
[1723954717397,0.00022782,2608.2,2608.1,11.60781785]
[1723954717593,0.00022782,2608.2,2608.1,15.44178138]
[1723954718410,0.00022782,2608.2,2608.1,15.44172474]
[1723954718799,0.00022782,2608.2,2608.1,14.83627324]
[1723954718984,0.00022782,2608.2,2608.1,14.48330295]
[1723954719188,0.00022782,2608.2,2608.1,2.52253137]
[1723954719597,0.00022782,2608.2,2608.1,4.02953938]
[1723954719792,0.00022782,2608.2,2608.1,2.52253137]
[1723954720397,0.00022782,2608.2,2608.1,10.35912253]
[1723954720694,0.00022782,2608.2,2608.1,16.20213716]
[1723954720890,0.00022782,2608.2,2608.1,8.53380365]
[1723954722104,0.00022782,2608.2,2608.1,12.36820365]
[1723954722484,0.00022782,2608.2,2608.1,16.20216696]
[1723954722903,0.00022782,2608.2,2608.1,12.36820365]
[1723954723593,0.00022782,2608.2,2608.1,13.32662365]
[1723954724192,0.00022782,2608.2,2608.1,17.16052876]
[1723954725394,0.00022782,2608.2,2608.1,17.16036602]
[1723954725903,0.00022782,2608.2,2608.1,12.36813994]
[1723954726101,0.00022782,2608.2,2608.1,8.03136083]
[1723954726292,0.00022782,2608.2,2608.1,8.03142061]
[1723954726512,0.00022782,2608.2,2608.1,12.36764464]
[1723954726696,0.00022782,2608.2,2608.1,17.16046464]
[1723954727700,0.00022782,2608.2,2608.1,13.32606464]
[1723954728306,0.00022782,2608.2,2608.1,17.16039522]
[1723954728496,0.00022782,2608.2,2608.1,13.32658688]
[1723954728697,0.00022782,2608.2,2608.1,17.16046205]
[1723954729000,0.00022782,2608.2,2608.1,16.20204205]
[1723954729202,0.00022782,2608.2,2608.1,6.52466662]
[1723954729710,0.00022782,2608.2,2608.1,8.53386265]
[1723954730092,0.00022782,2608.2,2608.1,6.52466662]
[1723954730600,0.00022782,2608.2,2608.1,5.91918997]
[1723954730805,0.00022782,2608.2,2608.1,6.52466317]
[1723954731205,0.00022782,2608.2,2608.1,6.52466136]
[1723954731690,0.00022782,2608.2,2608.1,8.03155379]
[1723954731891,0.00022782,2608.2,2608.1,6.52466136]
[1723954732098,0.00022782,2608.2,2608.1,4.02950266]
[1723954732908,0.00022782,2608.2,2608.1,2.5224702]
[1723954733807,0.00022782,2608.2,2608.1,4.02951043]
[1723954734208,0.00022782,2608.2,2608.1,2.5224702]
[1723954734504,0.00022782,2608.2,2608.1,2.52249758]
[1723954735017,0.00022782,2608.2,2608.1,1.91699881]
[1723954735309,0.00022782,2608.2,2608.1,7.31531515]
[1723954735512,0.00022782,2608.2,2608.1,11.70717041]
[1723954736396,0.00022782,2608.2,2608.1,13.71636644]
[1723954736593,0.00022782,2608.2,2608.1,19.86927702]
[1723954736797,0.00022782,2608.2,2608.1,17.86008099]
[1723954737907,2.77799126,2609.5,2608.2,3.8336]
[1723954738105,0.3551,2609.4,2609.1,1.00425491]
[1723954738303,0.3551,2609.4,2609.1,1.37785491]
[1723954739034,0.35882226,2609.4,2609.1,1.38210773]
[1723954739205,0.00372226,2609.4,2609.1,1.38210773]
[1723954739398,0.3551,2609.3,2609.1,0.37785282]
[1723954739602,0.3551,2609.3,2609.1,0.00425282]
[1723954739603,0.95801,2609.2,2609.1,0.00425282]
[1723954739911,4.79081,2609.2,2609.1,0.00425282]
[1723954740101,3.8328,2609.2,2609.1,0.00425282]
[1723954741018,0.95805,2609.1,2609.0,0.00575827]
[1723954741200,4.79085,2609.1,2609.0,0.00575827]
[1723954741504,9.87345,2609.1,2609.0,0.00575827]
[1723954742206,0.95815,2608.9,2608.4,1.00425491]
[1723954742440,4.16595,2608.9,2608.4,1.00425491]
[1723954742613,0.95815,2608.9,2608.4,1.00425491]
[1723954743211,0.95815,2608.9,2608.4,1.01331448]
[1723954743212,0.96390827,2608.9,2608.4,1.01331448]
[1723954743614,4.166,2608.7,2608.4,0.00905957]
[1723954743817,0.0826,2608.6,2608.4,0.00905957]
[1723954744209,3.9162,2608.6,2608.4,0.00905957]
[1723954745108,0.00575827,2608.9,2608.4,0.00905957]
[1723954745308,0.00575827,2608.9,2608.4,1.01331448]
[1723954745609,0.96388827,2608.9,2608.5,1.00425491]
[1723954745813,0.96388827,2608.9,2608.4,1.01331448]
[1723954746202,0.00575827,2608.9,2608.4,1.01331448]
[1723954746405,0.00575827,2608.9,2608.5,1.00425491]
[1723954746919,0.00575827,2608.9,2608.4,1.01331448]
[1723954747609,0.00575827,2608.9,2608.5,1.00425491]
[1723954748513,0.00575827,2608.9,2608.5,1.38115491]
[1723954748901,0.00575827,2608.9,2608.5,0.3769]
[1723954749506,0.00575827,2608.9,2608.5,1.38115491]
[1723954750925,0.00575827,2608.9,2608.6,0.95822]
[1723954751214,0.00575827,2608.9,2608.7,0.3687]
[1723954752502,0.00575827,2608.9,2608.7,1.32689]
[1723954753117,0.00575827,2608.9,2608.7,2.33114491]
[1723954753308,0.00575827,2608.9,2608.7,1.37295491]
[1723954753812,0.00575827,2608.9,2608.7,0.3687]
[1723954755609,3.8328,2608.8,2608.7,0.3687]
[1723954757836,0.00575827,2608.9,2608.7,0.3687]
[1723954758923,3.83855827,2608.9,2608.7,0.3687]
[1723954759117,0.00575827,2608.9,2608.7,0.3687]
[1723954762025,0.00575827,2608.9,2608.8,0.3671]
[1723954763328,0.00575827,2608.9,2608.8,1.32526]
[1723954763524,0.00575827,2608.9,2608.8,2.93490323]
[1723954764419,0.00575827,2608.9,2608.8,10.96147011]
[1723954764826,0.00575827,2608.9,2608.8,10.00331011]
[1723954766325,0.00575827,2608.9,2608.8,10.00329971]
[1723954766526,0.00575827,2608.9,2608.8,12.87798376]
[1723954766827,0.00575827,2608.9,2608.8,11.91983929]
[1723954767425,0.00575827,2608.9,2608.8,10.00329749]
[1723954769728,0.00575827,2608.9,2608.8,12.87798574]
[1723954769929,0.00575827,2608.9,2608.8,12.8779842]
[1723954770228,0.00575827,2608.9,2608.8,11.9197979]
[1723954770417,0.00575827,2608.9,2608.8,10.00329749]
[1723954770626,0.00575827,2608.9,2608.8,10.91555708]
[1723954771229,0.00575827,2608.9,2608.8,10.00247162]
[1723954771829,0.00575827,2608.9,2608.8,6.16967162]
[1723954773225,0.00575827,2608.9,2608.7,1.37212904]
[1723954773226,3.83855827,2608.9,2608.7,1.37212904]
[1723954773725,4.18225827,2608.9,2608.7,1.37212904]
[1723954774127,4.18225827,2608.9,2608.6,1.50638236]
[1723954774128,0.9582,2608.7,2608.6,2.5098114]
[1723954774436,4.87368,2608.8,2608.4,0.00905957]
[1723954775227,0.34945827,2608.9,2608.4,0.00905957]
[1723954775434,0.34945827,2608.9,2608.5,4.86894747]
[1723954775726,0.34945827,2608.9,2608.6,0.3701]
[1723954775916,0.34945827,2608.9,2608.7,0.3524]
[1723954778023,4.18225827,2608.9,2608.7,0.3524]
[1723954778423,4.18225827,2608.9,2608.6,0.3571]
[1723954778624,0.34945827,2608.9,2608.6,0.3571]
[1723954780127,5.14120827,2608.9,2608.4,1.36368861]
[1723954780317,0.0828,2608.8,2608.5,1.60887782]
[1723954780521,0.0828,2608.8,2608.5,1.00342904]
[1723954780731,0.0828,2608.8,2608.4,1.72538861]
[1723954781029,0.0828,2608.8,2608.5,0.60545813]
[1723954781325,0.0828,2608.8,2608.5,1.00342904]
[1723954781530,0.0828,2608.8,2608.4,1.72538861]
[1723954781828,0.0828,2608.8,2608.5,0.60545664]
[1723954782029,0.0828,2608.8,2608.4,1.72538861]
[1723954782228,0.0828,2608.8,2608.5,0.60545505]
[1723954782430,0.0828,2608.8,2608.5,1.00342904]
[1723954782927,0.0828,2608.8,2608.4,1.72538861]
[1723954783125,0.0828,2608.8,2608.5,0.60544886]
[1723954783324,0.0828,2608.8,2608.4,1.72538861]
[1723954783524,0.0828,2608.8,2608.5,0.60545433]
[1723954783828,0.0828,2608.8,2608.4,1.72538861]
[1723954784028,0.0828,2608.8,2608.5,0.6054511]
[1723954784232,0.0828,2608.8,2608.4,1.72538861]
[1723954784430,0.0828,2608.8,2608.5,0.60545254]
[1723954784632,0.0828,2608.8,2608.4,1.72538861]
[1723954784929,0.0828,2608.8,2608.5,0.60545234]
[1723954785231,0.0828,2608.8,2608.4,1.72538861]
[1723954785435,0.0828,2608.8,2608.5,0.60545237]
[1723954785626,0.0828,2608.8,2608.4,1.72538861]
[1723954785840,0.0828,2608.8,2608.5,0.60545249]
[1723954786131,0.0828,2608.8,2608.4,1.72538861]
[1723954786329,0.0828,2608.8,2608.5,0.6054526]
[1723954786632,0.0828,2608.8,2608.4,1.72538861]
[1723954786833,0.0828,2608.8,2608.5,0.60545247]
[1723954787032,0.0828,2608.8,2608.4,1.72538861]
[1723954787234,0.0828,2608.8,2608.5,0.6054536]
[1723954787534,0.0828,2608.8,2608.4,1.72538861]
[1723954787738,1.04097,2608.8,2608.5,0.60545963]
[1723954788035,1.04097,2608.8,2608.4,1.72538861]
[1723954788235,0.34945827,2608.9,2608.5,0.60546189]
[1723954788434,0.34945827,2608.9,2608.5,1.00342904]
[1723954788735,0.95824,2608.6,2608.4,0.72195957]
[1723954789034,0.3508,2608.5,2608.4,0.72195957]
[1723954789436,4.1844,2608.5,2608.4,0.72195957]
[1723954790036,4.1844,2608.5,2608.4,0.00905957]
[1723954790037,10.14267,2608.5,2608.4,0.00905957]
[1723954792337,5.14267,2608.5,2608.4,0.00905957]
[1723954792833,10.14267,2608.5,2608.4,0.00905957]
[1723954793227,5.14267,2608.5,2608.4,0.00905957]
[1723954793430,10.14267,2608.5,2608.4,0.00905957]
[1723954793630,5.14267,2608.5,2608.4,0.00905957]
[1723954793826,10.14267,2608.5,2608.4,0.00905957]
[1723954794031,5.14267,2608.5,2608.4,0.00905957]
[1723954795342,10.14267,2608.5,2608.4,0.00905957]
[1723954796236,5.14267,2608.5,2608.4,0.00905957]
[1723954797825,6.10867,2608.5,2608.4,0.00905957]
[1723954798631,5.1504,2608.5,2608.4,0.00905957]
[1723954799942,4.7996,2608.5,2608.4,0.00905957]
[1723954800539,5.13201,2608.7,2608.4,0.00905957]
[1723954800836,4.1738,2608.7,2608.4,1.03835957]
[1723954801036,0.966,2608.6,2608.4,1.03835957]
[1723954801542,5.13201,2608.7,2608.4,1.03835957]
[1723954802648,5.75784,2608.6,2608.4,0.69605957]
[1723954803045,3.8336,2608.5,2608.4,0.69605957]
[1723954803347,3.8336,2608.5,2607.4,4.21122904]
[1723954803348,0.95852,2607.9,2607.4,4.21122904]
[1723954803642,0.95852,2607.9,2607.3,2.47238236]
[1723954803643,0.966,2607.9,2607.8,0.3785]
[1723954803843,0.95848,2608.0,2607.8,0.3785]
[1723954804045,1.31838,2608.0,2607.8,0.3785]
[1723954804242,1.31838,2608.0,2607.8,0.38268579]
[1723954805235,1.31837,2608.0,2607.8,0.38268579]
[1723954806029,0.3599,2608.0,2607.8,0.38268579]
[1723954806234,3.2078,2608.1,2607.8,0.38268579]
[1723954810648,0.95838,2608.2,2607.8,0.38268579]
[1723954811542,0.95836,2608.3,2607.8,0.38268579]
[1723954813358,0.95839,2608.2,2607.8,0.38268579]
[1723954814748,3.5768,2608.4,2607.8,0.38268579]
[1723954814945,0.95841,2608.2,2607.8,0.38268579]
[1723954815338,0.95842,2608.1,2607.8,0.38268579]
[1723954815540,0.95849,2607.9,2607.8,0.38268579]
[1723954816350,4.79289,2607.9,2607.8,0.38268579]
[1723954817453,0.95849,2607.9,2607.8,0.38268579]
[1723954821656,1.31467,2608.0,2607.8,0.38268579]
[1723954822656,0.95849,2607.9,2607.8,0.38268579]
[1723954822856,3.2078,2608.1,2607.8,0.38268579]
[1723954823844,4.1738,2608.1,2607.8,0.38268579]
[1723954825157,3.2078,2608.1,2607.8,2.30721579]
[1723954825353,3.2078,2608.1,2607.8,1.34868579]
[1723954825575,3.2078,2608.1,2607.8,0.38268579]
[1723954826447,0.966,2608.0,2607.8,0.38268579]
[1723954830748,1.92446,2608.0,2607.8,0.38268579]
[1723954830960,0.966,2608.0,2607.8,0.38268579]
[1723954831758,0.966,2607.9,2607.8,0.38268579]
[1723954833867,0.966,2608.0,2607.8,0.38268579]
[1723954835974,0.966,2607.9,2607.8,0.38268579]
[1723954837562,1.92447,2608.0,2607.8,0.38268579]
[1723954840975,0.966,2608.0,2607.8,0.38268579]
[1723954842165,0.3782,2607.9,2607.8,0.00418579]
[1723954843765,1.3442,2607.9,2607.8,0.00418579]
[1723954845169,2.30269,2607.9,2607.8,0.00418579]
[1723954845671,3.2078,2608.1,2607.8,0.00418579]
[1723954845975,0.966,2608.0,2607.8,0.00418579]
[1723954846181,0.966,2608.0,2607.8,0.37498579]
[1723954846774,0.966,2608.0,2607.9,0.3664]
[1723954849888,0.966,2608.0,2607.8,0.00418579]
[1723954850076,1.3275,2607.9,2607.8,0.00418579]
[1723954850479,1.3275,2607.9,2607.8,0.60978191]
[1723954850781,1.3275,2607.9,2607.8,0.00418579]
[1723954851079,1.3275,2607.9,2607.8,0.60977259]
[1723954851780,1.3275,2607.9,2607.8,0.00418579]
[1723954851978,2.28599,2607.9,2607.8,0.00418579]
[1723954852577,1.3275,2607.9,2607.8,0.60976829]
[1723954853384,1.3275,2607.9,2607.8,1.61319595]
[1723954854687,1.3275,2607.9,2607.8,0.60975626]
[1723954854871,0.966,2607.9,2607.8,0.60975626]
[1723954855074,0.966,2607.9,2607.8,1.9892853]
[1723954855676,0.966,2607.9,2607.8,0.98585626]
[1723954856180,0.966,2607.9,2607.8,1.9892853]
[1723954858490,0.966,2607.9,2607.8,0.98585626]
[1723954858677,0.966,2607.9,2607.8,1.9892853]
[1723954861184,0.966,2607.9,2607.8,0.60975626]
[1723954861409,1.3171,2607.9,2607.8,0.00418579]
[1723954861783,2.27559,2607.9,2607.8,0.00418579]
[1723954861980,6.10999,2607.9,2607.8,0.00418579]
[1723954862280,0.95867,2607.4,2607.2,1.00342904]
[1723954862479,1.3171,2607.3,2607.1,1.00342904]
[1723954863173,1.32061362,2607.3,2607.1,1.007899]
[1723954863377,1.32061362,2607.3,2607.1,0.00446996]
[1723954863980,0.00351362,2607.3,2607.1,0.00446996]
[1723954864187,0.00351362,2607.3,2607.1,1.007899]
[1723954864388,0.00351362,2607.3,2607.2,0.376]
[1723954869782,0.96951362,2607.3,2607.2,0.376]
[1723954870891,0.00351362,2607.3,2607.2,0.376]
[1723954871191,0.96951362,2607.3,2607.2,0.376]
[1723954871390,0.96951362,2607.3,2607.1,0.00446996]
[1723954881691,0.966,2607.2,2607.1,0.00446996]
[1723954883282,0.96951362,2607.3,2607.1,0.00446996]
[1723954894194,0.96951362,2607.3,2607.1,1.007899]
[1723954895305,0.96951362,2607.3,2607.1,0.00446996]
[1723954895703,0.96951362,2607.3,2607.1,1.007899]
[1723954897696,0.96951362,2607.3,2607.1,0.00446996]
[1723954897896,0.347,2607.2,2607.1,0.00446996]
[1723954898296,0.347,2607.2,2607.1,0.61013537]
[1723954898806,0.347,2607.2,2607.1,1.61356441]
[1723954899194,2.27175,2607.2,2607.1,0.00446996]
[1723954899510,1.3953,2607.2,2607.1,0.00446996]
[1723954900012,0.95882,2607.0,2606.9,0.00575827]
[1723954900197,1.92482,2607.0,2606.9,0.00575827]
[1723954901000,1.92482,2607.0,2606.9,0.01027345]
[1723954902603,5.76082,2607.0,2606.9,0.01027345]
[1723954904419,10.76082,2607.0,2606.9,0.01027345]
[1723954905501,0.966,2606.5,2606.4,0.366]
[1723954905696,1.92502,2606.5,2606.3,0.3532]
[1723954906104,1.92502,2606.5,2606.2,0.3444]
[1723954906302,0.966,2606.3,2606.2,0.3444]
[1723954906500,0.966,2606.3,2606.2,0.34741018]
[1723954911305,1.92508,2606.3,2606.2,0.00301018]
[1723954912213,0.966,2606.3,2606.2,0.00301018]
[1723954912403,1.92508,2606.3,2606.2,0.00301018]
[1723954915413,0.95908,2606.3,2606.2,0.00301018]
[1723954915615,0.966,2606.3,2606.2,0.00301018]
[1723954916310,1.92508,2606.3,2606.2,0.00301018]
[1723954916905,5.76188,2606.3,2606.2,0.00301018]
[1723954917420,1.92508,2606.3,2606.2,0.00301018]
[1723954924027,5.76188,2606.3,2606.2,0.00301018]
[1723954926426,6.06932263,2606.3,2606.2,0.00301018]
[1723954927822,6.06932263,2606.3,2606.1,0.00575827]
[1723954927823,3.8368,2606.2,2606.0,0.3755]
[1723954928023,1.92515,2606.1,2606.0,0.3755]
[1723954928418,5.76275,2606.1,2606.0,0.3755]
[1723954928925,8.97055,2606.1,2606.0,0.37889295]
[1723954933714,2.77799126,2606.6,2606.0,7.42429295]
[1723954933920,0.966,2606.6,2606.3,3.2078]
[1723954934323,0.3445,2606.9,2606.3,3.2078]
[1723954934324,0.966,2606.4,2606.3,3.2078]
[1723954934720,0.966,2606.4,2606.1,0.733]
[1723954935029,0.3445,2606.9,2606.1,0.733]
[1723954935030,0.966,2606.3,2606.1,0.733]
[1723954935529,0.966,2606.3,2606.1,4.5698]
[1723954936230,0.966,2606.3,2606.1,7.7776]
[1723954936428,0.966,2606.3,2606.1,4.5698]
[1723954937621,0.95891,2606.8,2606.1,8.73675]
[1723954937821,0.3445,2606.9,2606.1,0.733]
[1723954937822,0.966,2606.3,2606.1,0.733]
[1723954938231,0.966,2606.3,2606.1,4.5698]
[1723954938528,0.966,2606.3,2606.1,0.733]
[1723954938735,0.966,2606.3,2606.1,4.5698]
[1723954940537,0.966,2606.3,2606.1,0.733]
[1723954941829,0.3445,2606.5,2606.1,0.733]
[1723954941830,0.966,2606.2,2606.1,0.733]
[1723954944837,0.966,2606.2,2606.1,0.3763]
[1723954945532,5.76192,2606.2,2606.1,0.3763]
[1723954947723,0.95915,2606.1,2606.0,0.00339295]
[1723954947932,8.35245,2606.1,2606.0,0.00339295]
[1723954948126,8.43515,2606.1,2606.0,0.00339295]
[1723954949231,7.3933,2606.1,2606.0,0.00339295]
[1723954949728,8.3593,2606.1,2606.0,0.00339295]
[1723954951239,5.1515,2606.1,2606.0,0.00339295]
[1723954951430,8.3593,2606.1,2606.0,0.00339295]
[1723954951827,4.5225,2606.1,2606.0,0.00339295]
[1723954953236,0.966,2606.1,2606.0,0.00339295]
[1723954958739,1.92515,2606.1,2606.0,0.00339295]
[1723954958939,2.36925,2606.1,2606.0,0.00339295]
[1723954959439,6.20685,2606.1,2606.0,0.00339295]
[1723954961635,6.12395,2606.1,2606.0,0.00339295]
[1723954964348,6.12395,2606.1,2606.0,0.01519295]
[1723954967247,0.3612,2606.1,2606.0,0.01519295]
[1723954967550,1.3272,2606.1,2606.0,0.01519295]
[1723954967847,5.1648,2606.1,2606.0,0.01519295]
[1723954968453,6.12395,2606.1,2606.0,0.01519295]
[1723954968860,6.20665,2606.1,2606.0,0.01519295]
[1723954974652,0.95923,2605.9,2605.8,0.00575827]
[1723954974846,1.92523,2605.9,2605.8,0.00575827]
[1723954975078,5.76283,2605.9,2605.8,0.00575827]
[1723954975541,8.97063,2605.9,2605.8,0.01040948]
[1723954977542,8.00463,2605.9,2605.8,0.01040948]
[1723954977950,8.97063,2605.9,2605.8,0.01040948]
[1723954983656,3.2078,2605.9,2605.8,0.01040948]
[1723954983856,4.1738,2605.9,2605.8,0.01040948]
[1723954985069,0.96494827,2606.1,2605.8,0.01040948]
[1723954985265,0.95937,2605.5,2605.3,2.5098114]
[1723954985473,0.95937,2605.5,2605.4,0.3421]
[1723954985789,0.95937,2605.5,2605.0,0.3736]
[1723954985790,0.95945,2605.3,2605.0,0.3736]
[1723954985956,7.0462,2605.5,2605.0,0.3736]
[1723954985957,0.95942,2605.4,2605.1,0.3496]
[1723954986160,0.966,2605.2,2605.1,0.3496]
[1723954986361,0.97035174,2605.2,2605.1,0.35442374]
[1723954988877,0.97035174,2605.2,2605.1,0.72702374]
[1723954989764,0.00435174,2605.2,2605.1,4.56542374]
[1723954989969,0.97035174,2605.2,2605.1,4.56542374]
[1723954990165,0.00435174,2605.2,2605.1,4.56542374]
[1723954990375,0.97035174,2605.2,2605.1,5.17139486]
[1723954990574,0.97035174,2605.2,2605.1,6.1748239]
[1723954992099,0.97035174,2605.2,2605.1,5.56885278]
[1723954992275,0.97035174,2605.2,2605.1,5.17138708]
[1723954993069,0.97035174,2605.2,2605.1,6.17481612]
[1723954996482,0.97035174,2605.2,2605.1,5.17138697]
[1723954996785,0.97035174,2605.2,2605.1,6.17481601]
[1723954996981,0.97035174,2605.2,2605.1,5.17138697]
[1723954997477,0.00435174,2605.2,2605.1,6.13092311]
[1723954997683,0.97035174,2605.2,2605.1,7.13435215]
[1723954998778,0.97035174,2605.2,2605.1,9.05352779]
[1723954998972,0.97035174,2605.2,2605.1,9.05350196]
[1723954999181,0.97035174,2605.2,2605.1,7.13435215]
[1723955000482,0.97035174,2605.2,2605.1,6.52837278]
[1723955000686,0.97035174,2605.2,2605.1,7.13433888]
[1723955001489,0.97035174,2605.2,2605.1,6.52837278]
[1723955001670,0.97035174,2605.2,2605.1,7.1343355]
[1723955002283,0.97035174,2605.2,2605.1,9.05464121]
[1723955002680,0.966,2605.3,2605.2,0.95946]
[1723955002980,0.966,2605.3,2605.2,9.07326296]
[1723955003184,0.966,2605.3,2605.2,17.91166296]
[1723955003776,0.968923,2605.3,2605.2,17.91166296]
[1723955003981,0.968923,2605.3,2605.2,17.30570024]
[1723955004380,0.968923,2605.3,2605.2,12.91163917]
[1723955004588,0.968923,2605.3,2605.2,17.91163917]
[1723955005090,0.968923,2605.3,2605.2,16.95218746]
[1723955005280,0.968923,2605.3,2605.2,10.44543676]
[1723955005479,0.968923,2605.3,2605.2,9.530961]
[1723955005674,0.968923,2605.3,2605.2,12.91159971]
[1723955005880,0.968923,2605.3,2605.2,17.91159971]
[1723955006086,0.968923,2605.3,2605.2,11.95211971]
[1723955006388,0.968923,2605.3,2605.2,5.44910714]
[1723955006589,0.968923,2605.3,2605.2,1.61070714]
[1723955006785,0.968923,2605.3,2605.2,5.44910714]
[1723955007180,0.968923,2605.3,2605.2,1.61070714]
[1723955007381,0.968923,2605.3,2605.2,5.44910714]
[1723955007581,0.968923,2605.3,2605.2,7.36834732]
[1723955007782,0.968923,2605.3,2605.2,1.61070714]
[1723955008993,0.968923,2605.3,2605.2,3.52994246]
[1723955009187,0.968923,2605.3,2605.2,3.53009937]
[1723955009488,0.968923,2605.3,2605.2,2.52519801]
[1723955011091,0.968923,2605.3,2605.2,3.53025865]
[1723955011290,0.968923,2605.3,2605.2,2.52519801]
[1723955011486,0.968923,2605.3,2605.2,3.53032201]
[1723955012088,0.968923,2605.3,2605.2,2.52519801]
[1723955012289,0.968923,2605.3,2605.2,3.53034975]
[1723955012486,0.968923,2605.3,2605.2,2.52519801]
[1723955012685,0.968923,2605.3,2605.2,3.53041471]
[1723955012888,0.968923,2605.3,2605.2,3.53047987]
[1723955013484,0.968923,2605.3,2605.2,2.52526317]
[1723955013894,0.968923,2605.3,2605.2,1.91930048]
[1723955014091,0.968923,2605.3,2605.2,4.99150948]
[1723955015184,0.968923,2605.3,2605.2,3.48475878]
[1723955016496,0.968923,2605.3,2605.2,5.4932686]
[1723955016901,0.968923,2605.3,2605.2,3.48475878]
[1723955017399,0.968923,2605.3,2605.2,1.5654583]
[1723955017696,0.968923,2605.3,2605.2,3.48462312]
[1723955018298,0.002923,2605.3,2605.2,3.48462312]
[1723955018486,0.002923,2605.3,2605.2,5.49313294]
[1723955018895,0.002923,2605.3,2605.2,5.49309366]
[1723955019400,0.002923,2605.3,2605.2,9.3312611]